Cogmind - Beta 16 @@@ ROGUE MODE // 2025.10.23 @ 21:52:20 Player: morimori Result: Destroyed by S-10 Pest with Light Assault Rifle Performance ------------- Evolutions (0) 0 Regions Visited (2) 400 Robots Destroyed (24) 120 Value Destroyed (434) 434 Prototype IDs (14) 280 Alien Tech Used (0) 0 Bonus (0) 0 TOTAL SCORE: 1234 Bonus ------- None Cogmind --------- Core Integrity 0/250 Matter 255/300 Energy 246/250 System Corruption 1% Temperature Cool (2) Movement Treading (160) Location -10/Subcaves Parts ------- > --- POWER (1) -------- Ion Engine > --- PROPULSION (2) --- Light Treads Light Treads > --- UTILITY (2) ------ Large Storage Unit Core Shielding > --- WEAPON (2) ------- Medium Laser Medium Laser > --- INVENTORY (15) --- Ion Engine Light Treads Flightbrick Improved Heat Sink Improved Terrain Scanner Seismic Detector Light Armor Plating Light Armor Plating Hacking Suite Small Laser Ripper Makeshift Spear Peak State ------------ > --- POWER ------------ Ion Engine > --- PROPULSION ------- Light Treads Light Treads > --- UTILITY ---------- Large Storage Unit Seismic Detector > --- WEAPON ----------- Ripper Makeshift Spear > --- INVENTORY -------- Ion Engine Light Treads Flightbrick Improved Heat Sink Improved Terrain Scanner Core Shielding Light Armor Plating Light Armor Plating Hacking Suite Medium Laser Medium Laser Small Laser [Rating: 18] Favorites ----------- Power Ion Engine Engine Ion Engine Propulsion Light Treads Treads Light Treads Utility Large Storage Unit Device Seismic Detector Storage Large Storage Unit Protection Light Armor Plating Weapon Light Assault Rifle Energy Gun Medium Laser Ballistic Gun Light Assault Rifle Ballistic Cannon Light Cannon Special Weapon Multitool Slashing Weapon Ripper Piercing Weapon Makeshift Spear Build | -11 -10 -10 ------- Run | Yrd Mat Sub Slots Evolved . | . . . Power . | . . . Propulsion . | . . . Utility . | . . . Weapon . | . . . Parts Attached 24 | 7 5 12 Power 4 | 1 2 1 Engine 4 | 1 2 1 Core . | . . . Reactor . | . . . Propulsion 4 | 2 . 2 Treads 4 | 2 . 2 Leg . | . . . Wheel . | . . . Hover . | . . . Flight . | . . . Utility 5 | 2 1 2 Device 1 | 1 . . Storage 2 | 1 1 . Processor . | . . . Hackware . | . . . Protection 2 | . . 2 Artifact . | . . . Weapon 11 | 2 2 7 Energy Gun 2 | . . 2 Energy Cannon . | . . . Ballistic Gun 5 | 2 2 1 Ballistic Cannon 1 | . . 1 Launcher . | . . . Special Weapon 1 | . . 1 Impact Weapon . | . . . Slashing Weapon 1 | . . 1 Piercing Weapon 1 | . . 1 Special Melee Weapon . | . . . Unidentified Prototypes . | . . . Parts Lost 3 | . 1 2 Power 2 | . 1 1 Propulsion 1 | . . 1 Utility . | . . . Weapon . | . . . Highest Loss Streak 2 | . 1 2 To Critical Strikes 1 | . . 1 Average Backups 11 | 2 11 12 Power 1 | . 1 1 Propulsion 1 | . 1 1 Utility 5 | . 4 6 Weapon 3 | . 2 3 Tool/Special . | . . . Unused Backups 13 | . 5 8 Power 2 | . 1 1 Propulsion 2 | . 1 1 Utility 6 | . 1 5 Weapon 3 | . 2 1 Tool/Special . | . . . Average Slot Usage (%) 99 | . 99 99 Engine 13 | . 14 13 Treads 27 | . 27 28 Device 10 | . 14 8 Storage 14 | . 14 14 Protection 3 | . . 5 Ballistic Gun 19 | . 27 13 Ballistic Cannon 2 | . . 4 Slashing Weapon 2 | . . 4 Piercing Weapon 2 | . . 4 Peak Build Rating 18 | 7 9 18 Average Rating 10 | 5 8 12 On Entrance 5 | . 7 9 Avg Prop Armor Cover (%) . | . . . Naked Turns . | . . . Heaviest Build 32 | 12 28 32 Greatest Support 40 | 40 40 40 Greatest Overweight (x) . | . . . Average Overweight (x) . | . . . Largest Inventory Capacity 15 | 8 15 15 Average Capacity 13 | 7 12 15 Most Carried 15 | 4 15 15 Average Carried 12 | 2 11 14 Final Capacity 15 | 8 15 15 Final Carried 15 | 4 15 15 Class Distribution -------------------- 84% | Mutant 15% | Scavenger-Mutant Dominant Class ---------------- Mutant | -10/Materials Mutant | -10/Subcaves Resources | -11 -10 -10 ----------- Run | Yrd Mat Sub Matter Collected 899 | 353 292 254 Remotely . | . . . Salvage Created 828 | 126 509 193 Parts 55 | 7 37 11 Haulers Intercepted 2 | . 2 . Recyclers Shooed . | . . . Parts Field Recycled . | . . . Retrieved Matter . | . . . Parts Self-Destructed 13 | . . 13 Prevented . | . . . Parts Restored . | . . . Kills | -11 -10 -10 ------- Run | Yrd Mat Sub Combat Hostiles Destroyed 14 | . 7 7 Melee 1 | . . 1 Guns 13 | . 7 6 Classes Destroyed 9 | 3 5 1 Worker 1 | 1 . . Tunneler 1 | 1 . . Hauler 2 | . 2 . Recycler 3 | 1 2 . Operator 1 | . 1 . Watcher 2 | . 2 . Swarmer 6 | . 3 3 Grunt 4 | . 4 . Subdweller 4 | . . 4 Best Kill Streak 4 | 2 4 3 Combat Bots Only 3 | . 3 3 Max Kills in Single Turn 1 | 1 1 1 Gunslinging . | . . . Exploded . | . . . Melee 1 | . . 1 Uniques/NPCs Destroyed . | . . . Combat | -11 -10 -10 -------- Run | Yrd Mat Sub Hostile Shots Fired 129 | . 61 68 Missed 28 | . 16 12 Hits 101 | . 45 56 Projectile 101 | . 45 56 Critical Strikes 1 | . . 1 Damage Taken 1305 | . 490 815 Core 255 | . 64 191 Absorbed by Shields . | . . . Redirected to Shielding 29 | . . 29 Regen/Repaired (Parts) 106 | . 106 . Core Remaining (%) 100 | 100 . . Volleys Fired 105 | 9 68 28 Largest 2 | 2 2 2 Hottest 100 | 40 40 100 Shots Fired 205 | 18 136 51 Gun 193 | 18 136 39 Cannon 12 | . . 12 Launcher . | . . . Special . | . . . Kinetic 197 | 18 136 43 Thermal 8 | . . 8 Explosive . | . . . Electromagnetic . | . . . Robot Hit Streak 19 | 12 9 19 Robot Miss Streak 4 | 1 4 3 Penetration Max . | . . . Secondary Targets 2 | . . 2 Max Gunslinging Chain 1 | . . 1 Shots Hit Robots 138 | 15 80 43 Core Hits 52 | 5 34 13 Critical Kills 1 | . 1 . Critical Parts Destroyed . | . . . Critical Strikes 1 | . 1 . Destroy 1 | . 1 . Melee Attacks 8 | . . 8 Impact . | . . . Slashing 2 | . . 2 Piercing 6 | . . 6 Sneak Attacks . | . . . Combat Hostiles . | . . . Follow-up Attacks 1 | . . 1 Damage Inflicted 1414 | 151 735 528 Guns 1181 | 151 735 295 Cannons 107 | . . 107 Explosions . | . . . Melee 126 | . . 126 Ramming . | . . . Kinetic 1213 | 151 735 327 Thermal 75 | . . 75 Explosive . | . . . Electromagnetic . | . . . Impact . | . . . Slashing 27 | . . 27 Piercing 99 | . . 99 Highest Corruption 1 | . 1 1 Average Corruption 1 | . 1 1 Corruption Purged . | . . . Corruption Blocked . | . . . Effects 14 | . 5 9 Message Errors 2 | . 1 1 Matter Fused 5 | . 1 4 Heat Flow Errors 1 | . 1 . Energy Discharges 2 | . . 2 Data Loss (minor) 3 | . 2 1 Alerts 1 | . . 1 Overload Shots . | . . . Overflow Damage . | . . . Projectiles . | . . . Explosions . | . . . Melee . | . . . Knockbacks 1 | . . 1 Impact . | . . . Kinetic 1 | . . 1 Secondary . | . . . Self-Inflicted Damage . | . . . Shots . | . . . Rammed . | . . . Targets Rammed . | . . . Kicked . | . . . Crushed . | . . . Highest Temperature 153 | . 153 . Average Temperature 23 | . 23 . Received Heat Transfer 327 | . 231 96 Siege Activations . | . . . Martial Activations . | . . . Shielding Activations . | . . . Robots Disrupted . | . . . Combat Hostiles . | . . . Robots Corrupted . | . . . Combat Hostiles . | . . . Parts Fried . | . . . Impact Corruptions . | . . . Robots Melted . | . . . Combat Hostiles . | . . . Parts Melted 1 | . . 1 Heat Transferred 222 | . . 222 Parts Sabotaged . | . . . Parts Stolen . | . . . Parts Stripped . | . . . Power Chain Reactions . | . . . Alert | -11 -10 -10 ------- Run | Yrd Mat Sub Maximum Alert Level . | . . . Low Security (%) 100 | 100 100 . Level 1 . | . . . Level 2 . | . . . Level 3 . | . . . Level 4 . | . . . Level 5 . | . . . High Security . | . . . Max Security . | . . . Peak Influence 71 | 5 71 . Initial . | . . . Average 10 | 1 11 . Influence Increases 375 | 15 240 120 Destroy 0b10 Robot/C 200 | . 140 60 Destroy 0b10 Robot/NC 50 | 15 35 . Destroy Leader 38 | . 38 . Successful Hack 27 | . 27 . Lose Combat Pursuer 60 | . . 60 Influence Decreases 258 | 15 237 6 Entered New Map 3 | . . 3 Time Decay 255 | 15 237 3 Squads Dispatched 2 | . 2 . Investigation 1 | . 1 . Extermination . | . . . Reinforcement 1 | . 1 . Assault . | . . . Garrison . | . . . Intercept . | . . . Searches Triggered . | . . . Construction Impeded . | . . . Haulers Reinforced . | . . . Active Scanning Responses . | . . . Cargo Convoy Interrupts . | . . . Stealth | -11 -10 -10 --------- Run | Yrd Mat Sub Distress Signals 1 | . 1 . Communications Jammed . | . . . Distress Signals . | . . . Times Spotted 32 | . 22 10 Peak Tracking Total 6 | . 6 6 Tactical Retreats 2 | . . 2 Traps | -11 -10 -10 ------- Run | Yrd Mat Sub Traps Triggered 3 | . 3 . Indirectly . | . . . Trap Hack Attempts . | . . . Triggered . | . . . Disarmed . | . . . Reprogrammed . | . . . Reused . | . . . Traps Extracted . | . . . Installed 1 | . . 1 Triggered . | . . . Machines | -11 -10 -10 ---------- Run | Yrd Mat Sub Machines Disabled 1 | . . 1 Max in Single Turn 1 | . . 1 Machines Repaired . | . . . Machines Dismantled . | . . . Machines Sabotaged . | . . . Overloaded Fab Kills . | . . . Hacking | -11 -10 -10 --------- Run | Yrd Mat Sub Machines Accessed 11 | . 9 2 Terminals 6 | . 6 . Fabricators . | . . . Repair Stations 1 | . 1 . Recycling Units 2 | . 2 . Scanalyzers . | . . . Garrison Access . | . . . Total Hacks 41 | . 28 13 Successful 25 | . 12 13 Failed 16 | . 16 . Catastrophic 2 | . 2 . Database Lockouts . | . . . Manual 16 | . 16 . Terminals 18 | . 18 . Fabricators . | . . . Repair Stations 6 | . 6 . Recycling Units 4 | . 4 . Scanalyzers . | . . . Garrison Access . | . . . Terminal Hacks 17 | . 4 13 Record 12 | . . 12 Part Schematic 2 | . 2 . Prototype ID Bank 1 | . 1 . Locate Traps 1 | . 1 . Proto ID Catalog 1 | . . 1 Fabricator Hacks . | . . . Repair Station Hacks 4 | . 4 . Scan Component 2 | . 2 . Repair 2 | . 2 . Recycling Unit Hacks 1 | . 1 . Retrieve Components 1 | . 1 . Scanalyzer . | . . . Garrison Access Hacks . | . . . Unauthorized Hacks 3 | . 3 . Terminals 3 | . 3 . Botnet 2 | . 2 . Operators 1 | . 1 . Fabricators . | . . . Repair Stations . | . . . Recycling Units . | . . . Scanalyzers . | . . . Garrison Access . | . . . Data Cores Recovered . | . . . Used . | . . . Hacking Detections 8 | . 8 . Full Trace Events 1 | . 1 . Feedback Events . | . . . Feedback Blocked . | . . . Robot Schematics Acquired . | . . . Robots Built . | . . . Authchips . | . . . Time . | . . . Total Robot Build Rating . | . . . Part Schematics Acquired 2 | . 2 . Parts Built . | . . . Authchips . | . . . Time . | . . . Total Part Build Rating . | . . . Part Studies Acquired . | . . . Parts Repaired 2 | . 2 . Time 52 | . 52 . Parts Recycled . | . . . Recycled Matter . | . . . Retrieved Matter . | . . . Retrieved Components 5 | . 5 . Parts Scanalyzed . | . . . Part Schematics Acquired . | . . . Parts Damaged . | . . . Bothacking | -11 -10 -10 ------------ Run | Yrd Mat Sub Used RIF Installer . | . . . Robots Hacked . | . . . Non-combat . | . . . Combat . | . . . Robot Hacks Applied . | . . . Relay Couplers Released . | . . . Fabnet Peak Effective % . | . . . Robots Rewired . | . . . Allies Hacked . | . . . Hacks Repelled . | . . . Allies | -11 -10 -10 -------- Run | Yrd Mat Sub Total Allies . | . . . Largest Group . | . . . Highest-Rated Group . | . . . Highest-Rated Ally . | . . . Total Orders . | . . . Ally Attacks . | . . . Total Damage . | . . . Kills . | . . . Allies Corrupted . | . . . Allies Melted . | . . . Intel | -11 -10 -10 ------- Run | Yrd Mat Sub Active Infowar (turns) 2476 | 84 1348 1044 Seismic 2476 | 84 1348 1044 Robot Analysis Total . | . . . Derelict Logs Recovered 2 | . . 2 Drone Launches . | . . . Drone Recoveries . | . . . Exploration | -11 -10 -10 ------------- Run | Yrd Mat Sub Turns Passed 3342 | 152 1348 1842 Spaces Moved 1617 | 72 646 899 Core 5 | 5 . . Treads 1612 | 67 646 899 Legs . | . . . Wheels . | . . . Hover . | . . . Flight . | . . . Fastest Speed 50 | 50 160 160 Average Speed 159 | 152 160 160 Slowest Speed 160 | 160 160 160 Overloaded Moves . | . . . Propulsion Burnouts . | . . . Robots Hopped . | . . . Potential Cave-ins . | . . . Cave-ins Triggered . | . . . Exploration Rate (%) 40 | 5 76 39 Regions Visited 2 Branch Regions 1 Pre-discovered Areas 1 | . . 1 Known Exits Taken . | . . . Unknown Exits Taken 2 | 1 1 . Scrap Searched 2 | . . 2 Spaces Dug . | . . . Terrain Destroyed . | . . . Melee . | . . . Projectile . | . . . AOE . | . . . Terrain Rammed . | . . . Walls Destroyed . | . . . Machines Disabled . | . . . Actions | -11 -10 -10 --------- Run | Yrd Mat Sub Total 2191 | 95 849 1247 Wait 381 | 2 99 280 Move 1615 | 71 645 899 Hop . | . . . Pick Up 28 | 5 17 6 Fast Attach 13 | 7 6 . Attach 4 | . 1 3 Detach . | . . . Swap 21 | . 4 17 Drop 17 | 1 9 7 Fire 105 | 9 68 28 Melee 6 | . . 6 Ram . | . . . Kick . | . . . Crush . | . . . Escape Stasis . | . . . Rewire . | . . . Trap 1 | . . 1 Miscellaneous . | . . . Route ------- -11/Scrapyard -10/Materials (discovered 4 exits: [*Mat x2] / [*Min] / *Sub) -10/Subcaves (discovered 1 exit: [*Rec]) History --------- Turn | Location | Event 5 | -11/Scrapyard | Discovered new exit (range 16) 153 | -11/Scrapyard | Entered Materials 301 | -10/Materials | Build established: Mutant 586 | -10/Materials | Repaired Lgt. Treads 613 | -10/Materials | Repaired Lgt. Treads 815 | -10/Materials | Discovered new exit (range 8) 1037 | -10/Materials | Discovered new exit (range 16) 1118 | -10/Materials | Discovered new exit (range 4) 1275 | -10/Materials | Discovered new exit (range 8) 1501 | -10/Materials | Entered Subcaves 1502 | -10/Subcaves | Approached by a straggling Scientist 1508 | -10/Subcaves | Ambushed by Subdwellers from Twisted Machinery 1540 | -10/Subcaves | Core integrity fell below 50% 1711 | -10/Subcaves | Learned location of Zion (-7) 1711 | -10/Subcaves | Met a Zionite searching for "candidates" 2022 | -10/Subcaves | Visited 4L-MR0's lab 2118 | -10/Subcaves | Found Flightbrick 2166 | -10/Subcaves | Core integrity fell below 20% 2970 | -10/Subcaves | Visited Clippyterm 2975 | -10/Subcaves | Learned Research security intel 3101 | -10/Subcaves | Learned Materials emergency access door positions 3126 | -10/Subcaves | Shifting Twisted Machinery released Multitool 3290 | -10/Subcaves | Build established: Scavenger-Mutant 3323 | -10/Subcaves | Discovered new exit (range 10) 3343 | -10/Subcaves | Destroyed by S-10 Pest with Light Assault Rifle Last Messages --------------- Trojan(Botnet) on at least one or two Terminals to improve your odds of success elsewhere. 03056_ Acquired 10 matter. 03101_ Acquired derelict log, extracted data. Data stored: Materials emergency access points. Multitool falls loose from the Twisted Machinery. 03134_ Acquired Multitool. 03136_ Acquired Ripper. 03238_ System corrupted: Component data lost. 03280_ Acquired 17 matter. 03283_ System corrupted: Energy discharge (-92). 03284_ Acquired 3 matter. 03307_ System corrupted: Matter fused (-10). 03323_ EXIT=FOUND 03331_ S-10 Pest destroyed. 03335_ Lgt. Assault Rifle fries itself beyond repair. 03337_ S-10 Pest destroyed. 03337_ Switching to secondary target: S-10 Pest. 03340_ S-10 Pest destroyed. 03341_ System corrupted: Matter fused (-5). Map ----- +----------------------------------------------------+ | #?########??## ###???????? | | ### ##?# "###?????? | | ## #### ## # # # ## #### #####?? | | " #?## # ## ### ########??## % ### | | ""| #### ## #??????????###### ## | | " #?# ## ### ##???????????????## | | #?## # #### ##?# #?????????????????### | | #### ###??## ##??# #??????????????????# | | ## #????? ??? #??????????????????# | | ## ## ##???# ???# ??????????????????## | | #### #???# ???# ???????????????????? | | # ?## #???## ##?? #??????????????????# | | # ??### #???? ?#??# ???????????????????# | | ##"???## ##???? #?? #??????????????????# | | ### #?## ## #???#? #???????????????????# | | ?# ?# ^ #???## ??????????????????????? | | ?# ## ^^^ #???# ??????????????????????# | | ??# # # ^ #?### ??????????????????????# | | ?## ######^##?# #?????????????????????? | | ## ####?##??# R#####????#?#??????????? | | #?????# &<#???"""#?????????? | | %= # ## #????# R<#? "#??????????## | | ##### #???## %# "#???????????# | | ## #????####??## << s%= ""#???????????## | | ?# %# ##?????????# R# <#???????????? | | ?## % #?????????## <@## ""##???????????? | | ??# #??????????# ##?#? "#????????????? | | ?# ## #?????????## ###?????? "#????????????? | | ?# ##### ##???###### ### ##?????""#????????????? | | " #????## ##### # ##??????#????????????? | | #??????## #???????????????????? | | #????????# #???????????????????? | | ?????????## ## ## ##???????????????????? | | ??????????############### ##????????????????????? | | ?????????????????????????###?????????????????????? | | ?????????????????????????????????????????????????? | | ?????????????????????????????????????????????????? | | ?????????????????????????????????????????????????? | | ?????????????????????????????????????????????????? | | ?????????????????????????????????????????????????? | | ?????????????????????????????????????????????????? | | ?????????????????????????????????????????????????? | | ?????????????????????????????????????????????????? | | ?????????????????????????????????????????????????? | | ?????????????????????????????????????????????????? | | ?????????????????????????????????????????????????? | | ?????????????????????????????????????????????????? | | ?????????????????????????????????????????????????? | | ?????????????????????????????????????????????????? | | ?????????????????????????????????????????????????? | +----------------------------------------------------+ Best States ------------- Heat Dissipation 25 Energy Generation 10 Energy Capacity 250 Matter Stores 300 Matter Capacity 300 Sight Range 16 Terrain Scan Density 10 Armor Coverage 150 Core Shielding 20 Evasion (%) 40 Recoil Reduction 2 Item Schematics ----------------- Huge Storage Unit | -10/Materials | Hacked Hcp. Storage Unit | -10/Materials | Hacked Robot Schematics ------------------ None Fabricated ------------ Nothing Repaired ---------- Lgt. Treads | 55% | -10/Materials Lgt. Treads | 68% | -10/Materials Studied --------- None Alien Tech Used ----------------- None Achievements -------------- Mistaken Identity Challenges ------------ None Game ------ Seed GyrokineticSniperNetwork Manual? 0 Play Time 00:19:48 Cumulative 481.2 hours Start 2025.10.23 @ 21:26:42 End 2025.10.23 @ 21:52:20 Sessions 1 Manual Loads 0 Difficulty Rogue Special Mode None Game No. 228 Rogue 228 Adventurer 0 Explorer 0 Win Type - Total 6 Types 5/0/0/0/0/0/1/0/0/0 Lore% 66 Gallery% 71 Achievement% 36 Wizard Run 0 Options --------- Layout 0 ASCII 0 Keyboard 1 Movement Vi Keybinds 0 Fullscreen 2 Font 18/SmallcapsGlow Map View 76x50 Zoom Use 0% Tactical HUD 1 Map Filters NONE Filters NONE Steam 1 RUN: a61da59d-d229-4863-8bf2-ad4e759f5337